fUSD/lending_fUSD_20251213
["ID","MTS","AMOUNT","RATE_DAILY","PERIOD"]
[398392295,1765587041557,-250.0,0.00016922,2]
[398392296,1765587041566,-151.0,0.00016922,2]
[398392297,1765587041575,-151.0,0.00016922,2]
[398392298,1765587041584,-151.0,0.00016922,2]
[398392299,1765587041594,-151.0,0.00016922,2]
[398392300,1765587041604,-151.0,0.00016922,2]
[398392301,1765587041614,-151.0,0.00016922,2]
[398392302,1765587041624,-151.0,0.00016922,2]
[398392303,1765587041633,-151.0,0.00016922,2]
[398392304,1765587041645,-151.0,0.00016922,2]
[398392305,1765587041656,-151.0,0.00016922,2]
[398392306,1765587041668,-151.0,0.00016922,2]
[398392307,1765587041679,-151.0,0.00016922,2]
[398392308,1765587041688,-151.0,0.00016922,2]
[398392309,1765587041698,-151.0,0.00016922,2]
[398392310,1765587041707,-151.0,0.00016922,2]
[398392311,1765587041722,-151.0,0.00016922,2]
[398392312,1765587041732,-151.0,0.00016922,2]
[398392313,1765587041741,-151.0,0.00016922,2]
[398392314,1765587041751,-151.0,0.00016922,2]
[398392315,1765587041760,-151.0,0.00016922,2]
[398392316,1765587041770,-151.0,0.00016922,2]
[398392317,1765587041779,-151.0,0.00016932,2]
[398392318,1765587041789,-151.0,0.00016932,2]
[398392319,1765587041798,-151.0,0.00016932,2]
[398392320,1765587041808,-151.0,0.00016932,2]
[398392321,1765587041818,-151.0,0.00016932,2]
[398392322,1765587041827,-500.0,0.00016932,2]
[398392323,1765587041837,-230.97,0.00016932,3]
[398392324,1765587041847,-468115.7984,0.00016932,2]
[398392325,1765587041856,-908.0,0.00016944,2]
[398392326,1765587041866,-1892.95412868,0.00016949,2]
[398392327,1765587041875,-1809.552,0.00016972,2]
[398392328,1765587041885,-172.59071672,0.00016972,2]
[398392329,1765587041895,-150.0,0.00016975,2]
[398392330,1765587041905,-151.0,0.00016975,2]
[398392331,1765587041915,-150.0,0.00016975,2]
[398392332,1765587041924,-500.0,0.00016975,2]
[398392333,1765587041934,-150.0,0.00016975,2]
[398392334,1765587041944,-268.55451357,0.00016975,2]
[398392335,1765587041954,-150.0,0.00016975,2]
[398392336,1765587041965,-200.0,0.00016975,2]
[398392337,1765587041974,-500.0,0.00016975,2]
[398392338,1765587041984,-150.0,0.00016975,2]
[398392339,1765587041993,-150.0,0.00016975,2]
[398392340,1765587042002,-150.0,0.00016975,2]
[398392341,1765587042012,-500.0,0.00016975,2]
[398392342,1765587042022,-150.0,0.00016975,2]
[398392343,1765587042031,-2036.0,0.00016983,2]
[398392344,1765587042040,-1000.0,0.00016999,2]
[398392345,1765587042049,-3508.80820293,0.00017,2]
[398392346,1765587042058,-1214.0,0.00017,2]
[398392347,1765587042068,-151.0,0.00017,2]
[398392348,1765587042077,-151.0,0.00017,2]
[398392349,1765587042087,-199.493834,0.00017,2]
[398392350,1765587042096,-1360.0,0.00017015,2]
[398392351,1765587042106,-17350.48499967,0.00017015,2]
[398392352,1765587042115,-100.593279,0.00017016,2]
[398392353,1765587042124,-2688.0,0.00017034,2]
[398392354,1765587042134,-150.0,0.00017112,2]
[398392355,1765587042143,-150.0,0.00017112,2]
[398392359,1765587042649,-500.0,0.00017112,2]
[398392360,1765587042658,-150.0,0.00017112,2]
[398392361,1765587042667,-150.0,0.00017112,2]
[398392362,1765587042676,-500.0,0.00017112,2]
[398392363,1765587042685,-150.0,0.00017112,2]
[398392364,1765587042695,-500.0,0.00017112,2]
[398392365,1765587042704,-250.0,0.00017112,2]
[398392366,1765587042714,-151.0,0.00017112,2]
[398392367,1765587042723,-17350.48499967,0.00017141,2]
[398392368,1765587042732,-200.0,0.00017157,2]
[398392369,1765587042742,-168.0,0.00017169,2]
[398392370,1765587042752,-168.0,0.00017179,2]
[398392371,1765587042761,-151.0,0.00017188,2]
[398392372,1765587042771,-151.0,0.00017188,2]
[398392373,1765587042780,-168.0,0.00017191,2]
[398392374,1765587042789,-168.0,0.00017226,2]
[398392375,1765587042798,-150.0,0.00017249,2]
[398392376,1765587042808,-200.0,0.00017249,2]
[398392377,1765587042817,-500.0,0.00017249,2]
[398392378,1765587042826,-150.0,0.00017249,2]
[398392379,1765587042835,-200.0,0.00017249,2]
[398392380,1765587042844,-150.0,0.00017249,2]
[398392381,1765587042853,-229.95505162,0.00017249,2]
[398392382,1765587042862,-500.0,0.00017249,2]
[398392383,1765587042875,-927.8,0.0001726,2]
[398392384,1765587042884,-17350.48499967,0.00017268,2]
[398392385,1765587042894,-151.0,0.00017295,2]
[398392386,1765587042904,-279.83242146,0.00017295,2]
[398392387,1765587042914,-1000.0,0.00017295,2]
[398392388,1765587042924,-1000.0,0.00017295,2]
[398392389,1765587042933,-1000.0,0.00017295,2]
[398392390,1765587042942,-1000.0,0.00017295,2]
[398392391,1765587042953,-1000.0,0.00017295,2]
[398392392,1765587042965,-1000.0,0.00017295,2]
[398392393,1765587042975,-1000.0,0.00017295,2]
[398392394,1765587042984,-1000.0,0.00017295,2]
[398392395,1765587042994,-1000.0,0.00017295,2]
[398392396,1765587043005,-1000.0,0.00017295,2]
[398392397,1765587043014,-1000.0,0.00017295,2]
[398392398,1765587043023,-1000.0,0.00017295,2]
[398392399,1765587043033,-1000.0,0.00017295,2]
[398392400,1765587043042,-1000.0,0.00017295,2]
[398392401,1765587043051,-1000.0,0.00017295,2]
[398392402,1765587043060,-1000.0,0.00017295,2]
[398392403,1765587043069,-1000.0,0.00017295,2]
[398392404,1765587043079,-1000.0,0.00017295,2]
[398392405,1765587043088,-1000.0,0.00017295,2]
[398392406,1765587043098,-1000.0,0.00017295,2]
[398392407,1765587043110,-1000.0,0.00017295,2]
[398392408,1765587043119,-1000.0,0.00017295,2]
[398392409,1765587043129,-1000.0,0.00017295,2]
[398392410,1765587043138,-1000.0,0.00017295,2]
[398392411,1765587043148,-1000.0,0.00017295,2]
[398392412,1765587043158,-1000.0,0.00017295,2]
[398392413,1765587043167,-1000.0,0.00017295,2]
[398392414,1765587043176,-1021.10501284,0.00017295,2]
[398392415,1765587043187,-151.0,0.00017295,2]
[398392416,1765587043196,-151.0,0.00017295,2]
[398392417,1765587043206,-151.0,0.00017295,2]
[398392418,1765587043215,-1069.5,0.00017295,2]
[398392419,1765587043224,-233.70523639,0.00017319,2]
[398392420,1765587043233,-168.0,0.00017336,2]
[398392421,1765587043243,-168.0,0.00017371,2]
[398392422,1765587043253,-579.83004604,0.00017372,2]
[398392423,1765587043263,-241.84,0.00017376,2]
[398392424,1765587043273,-293.51891838,0.00017386,2]
[398392425,1765587043283,-500.0,0.00017386,2]
[398392426,1765587043292,-290.61238443,0.00017386,2]
[398392427,1765587043301,-500.0,0.00017386,2]
[398392428,1765587043311,-17350.48499967,0.00017394,2]
[398392429,1765587043320,-168.0,0.00017405,2]
[398392430,1765587043329,-233.70523636,0.00017416,2]
[398392431,1765587043339,-3449.0,0.00017419,2]
[398392432,1765587043349,-1324.0,0.00017419,2]
[398392433,1765587043358,-611.0,0.00017419,2]
[398392434,1765587043368,-1606.0,0.00017419,2]
[398392435,1765587043377,-1196.0,0.00017419,2]
[398392436,1765587043386,-910.0,0.00017419,2]
[398392437,1765587043400,-642.0,0.00017419,2]
[398392438,1765587043410,-1260.0,0.00017419,2]
[398392439,1765587043424,-1372.679,0.00017419,2]
[398392440,1765587043433,-2429.371,0.00017419,2]
[398392441,1765587043444,-564.964,0.00017419,2]
[398392442,1765587043453,-4795.0,0.00017419,2]
[398392443,1765587043464,-152.0,0.00017462,2]
[398392444,1765587043477,-595.37131296,0.0001747,2]
[398392445,1765587043487,-2036.0,0.00017479,2]
[398392446,1765587043497,-233.70523636,0.00017513,2]
[398392447,1765587043507,-168.0,0.00017515,2]
[398392448,1765587043517,-17350.48499967,0.00017521,2]
[398392449,1765587043526,-500.0,0.00017523,2]
[398392450,1765587043535,-500.0,0.00017523,2]
[398392451,1765587043544,-2218.28678825,0.00017534,2]
[398392452,1765587043553,-250.0,0.00017534,2]
[398392453,1765587043563,-600.0,0.00017564,2]
[398392454,1765587043572,-500.28821444,0.00017573,2]
[398392455,1765587043581,-500.42181547,0.00017573,2]
[398392456,1765587043591,-500.0,0.00017573,2]
[398392457,1765587043600,-500.0,0.00017573,2]
[398392458,1765587043609,-500.0,0.00017573,2]
[398392459,1765587043619,-500.0,0.00017573,2]
[398392460,1765587043628,-500.0,0.00017573,2]
[398392461,1765587043638,-500.0,0.00017573,2]
[398392462,1765587043657,-500.0,0.00017573,2]
[398392463,1765587043666,-500.0,0.00017573,2]
[398392464,1765587043675,-500.0,0.00017573,2]
[398392465,1765587043684,-500.0,0.00017573,2]
[398392466,1765587043693,-500.0,0.00017573,2]
[398392467,1765587043702,-500.0,0.00017573,2]
[398392468,1765587043711,-184.079,0.00017598,2]
[398392469,1765587043721,-151.222,0.00017598,2]
[398392470,1765587043730,-206.581,0.00017598,2]
[398392471,1765587043740,-150.245,0.00017598,2]
[398392472,1765587043749,-273.368,0.00017598,2]
[398392473,1765587043758,-150.0,0.00017598,2]
[398392474,1765587043768,-151.966,0.00017598,2]
[398392475,1765587043777,-151.0,0.00017598,2]
[398392476,1765587043786,-233.70523636,0.0001761,2]
[398392477,1765587043795,-17350.48499967,0.00017647,2]
[398392478,1765587043804,-500.0,0.0001766,2]
[398392479,1765587043814,-500.0,0.0001766,2]
[398392480,1765587043823,-233.70523636,0.00017706,2]
[398392481,1765587043832,-168.0,0.00017737,2]
[398392482,1765587043842,-168.0,0.00017747,2]
[398392483,1765587043851,-520.28389231,0.00017763,2]
[398392484,1765587043860,-2036.0,0.00017772,2]
[398392485,1765587043869,-17350.48499967,0.00017774,2]
[398392486,1765587043879,-500.0,0.00017797,2]
[398392487,1765587043888,-500.0,0.00017797,2]
[398392488,1765587043897,-500.0,0.00017799,2]
[398392489,1765587043907,-500.0,0.00017799,2]
[398392490,1765587043916,-500.0,0.00017799,2]
[398392491,1765587043926,-40649.2256721,0.000178,2]
[398392492,1765587043935,-504.0093959,0.000178,2]
[398392493,1765587043944,-233.70523636,0.00017803,2]
[398392494,1765587043955,-500.0,0.00017808,2]
[398392495,1765587043965,-804.42,0.00017836,2]
[398392496,1765587043975,-579.83004604,0.00017899,2]
[398392497,1765587043984,-504.79853285,0.000179,2]
[398392498,1765587043994,-233.70523636,0.000179,2]
[398392499,1765587044003,-17350.48499967,0.000179,2]
[398392500,1765587044012,-1184.49590144,0.000179,2]
[398392501,1765587044021,-1429.27931976,0.000179,2]
[398392502,1765587044035,-1365.00270574,0.000179,3]
[398392503,1765587044044,-168.0,0.00017931,2]
[398392504,1765587044054,-500.0,0.00017934,2]
[398392505,1765587044063,-500.0,0.00017934,2]
[398392506,1765587044072,-500.0,0.00017945,2]
[398392507,1765587044081,-168.0,0.00017946,2]
[398392508,1765587044091,-871.85608164,0.0001795,3]
[398392509,1765587044100,-492.97672049,0.00017972,2]
[398392510,1765587044110,-500.0,0.00017972,2]
[398392511,1765587044119,-500.0,0.00017972,2]
[398392512,1765587044129,-2039.0,0.00017973,2]
[398392513,1765587044138,-500.0,0.00017973,2]
[398392514,1765587044147,-162.12550355,0.00017973,2]
[398392515,1765587044156,-500.0,0.00017973,2]
[398392516,1765587044165,-500.0,0.00017973,2]
[398392517,1765587044174,-161.79906947,0.00017973,2]
[398392518,1765587044183,-160.33605002,0.00017973,2]
[398392519,1765587044193,-206.30413277,0.00017973,2]
[398392520,1765587044202,-500.0,0.00017973,2]
[398392521,1765587044212,-500.70781313,0.00017973,2]
[398392522,1765587044222,-555.06040677,0.00017973,2]
[398392523,1765587044231,-500.0,0.00017973,2]
[398392524,1765587044240,-500.0,0.00017973,2]
[398392525,1765587044249,-517.99485207,0.00017973,2]
[398392526,1765587044258,-500.0,0.00017973,2]
[398392527,1765587044267,-500.0,0.00017973,2]
[398392528,1765587044277,-500.0,0.00017973,2]
[398392529,1765587044287,-500.0,0.00017973,2]
[398392530,1765587044296,-500.0,0.00017973,2]
[398392531,1765587044305,-330.20256991,0.00017973,2]
[398392532,1765587044315,-334.04986518,0.00017973,2]
[398392533,1765587044324,-500.37685965,0.00017973,2]
[398392534,1765587044333,-500.0,0.00017973,2]
[398392535,1765587044342,-162.01451251,0.00017973,2]
[398392536,1765587044352,-500.0,0.00017973,2]
[398392537,1765587044361,-500.0,0.00017973,2]
[398392538,1765587044371,-500.7211152,0.00017973,2]
[398392539,1765587044380,-500.0,0.00017973,2]
[398392540,1765587044390,-500.0,0.00017973,2]
[398392541,1765587044400,-500.0,0.00017973,2]
[398392542,1765587044410,-500.0,0.00017973,2]
[398392543,1765587044422,-500.0,0.00017973,2]
[398392544,1765587044433,-503.38409325,0.00017973,2]
[398392545,1765587044444,-159.86013325,0.00017973,2]
[398392546,1765587044454,-508.70563236,0.00017973,2]
[398392547,1765587044463,-500.0,0.00017973,2]
[398392548,1765587044473,-500.0,0.00017973,2]
[398392549,1765587044483,-500.0,0.00017973,2]
[398392550,1765587044493,-500.0,0.00017973,2]
[398392551,1765587044502,-500.0,0.00017973,2]
[398392552,1765587044511,-500.0,0.00017973,2]
[398392553,1765587044521,-167.5481792,0.00017973,2]
[398392554,1765587044531,-500.0,0.00017973,2]
[398392555,1765587044540,-500.65733064,0.00017973,2]
[398392556,1765587044550,-156.30606927,0.00017973,2]
[398392557,1765587044559,-500.0,0.00017973,2]
[398392558,1765587044569,-500.43707985,0.00017973,2]
[398392559,1765587044579,-344.16807227,0.00017973,2]
[398392560,1765587044588,-500.0,0.00017973,2]
[398392561,1765587044598,-500.0,0.00017973,2]
[398392562,1765587044607,-500.0,0.00017973,2]
[398392563,1765587044616,-166.66428293,0.00017973,2]
[398392564,1765587044626,-500.0,0.00017973,2]
[398392565,1765587044635,-500.0,0.00017973,2]
[398392566,1765587044645,-159.22714351,0.00017973,2]
[398392567,1765587044655,-373.8367017,0.00017973,2]
[398392568,1765587044664,-219.94038912,0.00017973,2]
[398392569,1765587044674,-500.0,0.00017973,2]
[398392570,1765587044683,-168.31837311,0.00017973,2]
[398392571,1765587044692,-500.0,0.00017973,2]
[398392572,1765587044702,-282.17292834,0.00017973,2]
[398392573,1765587044711,-500.0,0.00017973,2]
[398392574,1765587044720,-500.0,0.00017973,2]
[398392575,1765587044730,-500.0,0.00017973,2]
[398392576,1765587044739,-150.0,0.00017973,2]
[398392577,1765587044749,-500.0,0.00017973,2]
[398392578,1765587044758,-500.0,0.00017973,2]
[398392579,1765587044767,-500.0,0.00017973,2]
[398392580,1765587044777,-500.0,0.00017973,2]
[398392581,1765587044786,-500.0,0.00017973,2]
[398392582,1765587044796,-500.0,0.00017973,2]
[398392583,1765587044806,-500.0,0.00017973,2]
[398392584,1765587044815,-328.68822113,0.00017973,2]
[398392585,1765587044825,-500.0,0.00017973,2]
[398392586,1765587044834,-500.0,0.00017973,2]
[398392587,1765587044844,-505.46215179,0.00017973,2]
[398392588,1765587044854,-500.0,0.00017973,2]
[398392589,1765587044863,-161.37791121,0.00017973,2]
[398392590,1765587044873,-164.58211898,0.00017973,2]
[398392591,1765587044882,-620.15182042,0.00017973,2]
[398392592,1765587044892,-500.0,0.00017973,2]
[398392593,1765587044901,-160.8418629,0.00017973,2]
[398392594,1765587044911,-500.0,0.00017973,2]
[398392595,1765587044920,-529.20503741,0.00017973,2]
[398392596,1765587044930,-508.40580635,0.00017973,2]
[398392597,1765587044940,-500.0,0.00017973,2]
[398392598,1765587044949,-165.30830932,0.00017973,2]
[398392599,1765587044964,-500.0,0.00017973,2]
[398392600,1765587044973,-500.0,0.00017973,2]
[398392601,1765587044983,-207.2199628,0.00017973,2]
[398392602,1765587044993,-500.0,0.00017973,2]
[398392603,1765587045002,-500.0,0.00017973,2]
[398392604,1765587045012,-500.0,0.00017973,2]
[398392605,1765587045022,-500.0,0.00017973,2]
[398392606,1765587045031,-520.28389231,0.0001799,2]
[398392607,1765587045040,-520.28389231,0.0001799,2]
[398392608,1765587045050,-804.42,0.00017999,2]
[398392609,1765587045059,-804.42,0.00017999,2]
[398392610,1765587045068,-804.42,0.00017999,2]
[398392611,1765587045078,-804.42,0.00017999,2]
[398392612,1765587045087,-804.42,0.00017999,2]
[398392613,1765587045096,-804.42,0.00017999,2]
[398392614,1765587045106,-804.42,0.00017999,2]
[398392615,1765587045116,-804.42,0.00017999,2]
[398392616,1765587045127,-804.42,0.00017999,2]
[398392617,1765587045136,-804.42,0.00017999,2]
[398392618,1765587045146,-804.42,0.00017999,2]
[398392619,1765587045155,-804.42,0.00017999,2]
[398392620,1765587045164,-804.42,0.00017999,2]
[398392621,1765587045173,-804.42,0.00017999,2]
[398392622,1765587045192,-804.42,0.00017999,2]
[398392623,1765587045203,-804.42,0.00017999,2]
[398392624,1765587045212,-804.42,0.00017999,2]
[398392625,1765587045222,-804.59763829,0.00017999,2]
[398392626,1765587045231,-500.0,0.00017999,2]
[398392627,1765587045242,-500.0,0.00017999,2]
[398392628,1765587045252,-500.0,0.00017999,2]
[398392629,1765587045262,-500.0,0.00017999,2]
[398392630,1765587045272,-500.0,0.00017999,2]
[398392631,1765587045281,-500.0,0.00017999,2]
[398392632,1765587045292,-12137.37293831,0.00017999,2]
[398392633,1765587045302,-10069666.20405796,0.00018,2]
[398392634,1765587045323,-2956.64790004,0.00018,2]
[398392635,1765587045334,-6316.52133088,0.00018,2]
[398392636,1765587045346,-1865.2,0.00018,2]
[398392637,1765587045366,-1868811.12082951,0.00018,2]
[398392638,1765587045378,-13441.71464927,0.00018,2]
[398392639,1765587045389,-68486.24246981,0.00018,2]
[398392640,1765587045401,-1455.83665154,0.00018,2]
[398392641,1765587045556,-5537.45975306,0.00017419,2]
[398392642,1765587045595,-981.54024694,0.00017419,2]
[398392643,1765587045605,-76.78922199,0.00018,2]
[398392644,1765587045618,-537.47173744,0.00018,2]
[398392645,1765587045642,-178.16,0.000169,2]
[398392646,1765587045652,-354.5231561,0.00018,2]
[398392647,1765587045862,-172.9271224,0.00017598,2]
[398392648,1765587045872,-223.86593717,0.00017598,2]
[398392649,1765587045883,-103.20694043,0.00018,2]
[398392653,1765587125254,248.2,8.484e-05,2]
[398392654,1765587125503,166.36850223,8.931e-05,2]
[398392655,1765587125533,81.83149777,8.931e-05,2]
[398392656,1765587125714,248.2,9.377e-05,2]
[398392657,1765587125934,248.2,9.824e-05,2]
[398392658,1765587126139,248.2,0.0001027,2]
[398392659,1765587126358,248.2,0.00010717,2]
[398392660,1765587126572,248.2,0.00011164,2]
[398392661,1765587126769,248.2,0.0001161,2]
[398392662,1765587126962,248.2,0.00012057,2]
[398392663,1765587127155,248.2,0.00012503,2]
[398392664,1765587127355,248.2,0.0001295,2]
[398392665,1765587127561,248.2,0.00013396,2]
[398392666,1765587127763,248.2,0.00013843,2]
[398392667,1765587128009,248.2,0.00014289,2]
[398392668,1765587128211,248.2,0.00014736,2]
[398392669,1765587128417,248.2,0.00015183,2]
[398392671,1765587201878,233.47603626,0.00014825,2]
[398392672,1765587462305,582.25,0.00024658,30]
[398392673,1765587801193,1570.31,0.00016365,5]
[398392682,1765588090669,166.66,0.00014827,2]
[398392683,1765588090869,166.66,0.0001514,2]
[398392684,1765588098344,-153.60720428,0.00015452,2]
[398392685,1765588159410,-336.1467615,0.00015436,2]
[398392686,1765588162584,-209.7413926,0.00015436,2]
[398392687,1765588164178,-156.3159642,0.00015436,2]
[398392688,1765588166344,-302.97834523,0.00015436,2]
[398392690,1765588170332,-305.64421677,0.00015436,2]
[398392691,1765588171385,-255.54462851,0.00015436,2]
[398392692,1765588173880,-429.41138896,0.00015436,2]
[398392693,1765588176020,-286.60689706,0.00015436,2]
[398392694,1765588177494,-478.97381787,0.00015436,2]
[398392695,1765588179691,-283.06120495,0.00015436,2]
[398392696,1765588218904,-255.62028926,0.00015436,2]
[398392697,1765588228475,1868.35,0.00015397,2]
[398392701,1765588231694,-23.37971074,0.00015436,2]
[398392702,1765588231704,-162.07538235,0.00015436,2]
[398392703,1765588231714,-13.05279572,0.00015452,2]
[398392704,1765588231724,-152.33736979,0.00015629,2]
[398392705,1765588231734,-111.16336345,0.00015629,2]
[398392706,1765588231745,-137.03663655,0.00015629,2]
[398392707,1765588231755,-166.66,0.00015764,2]
[398392708,1765588231764,-1600.0,0.00015765,2]
[398392709,1765588231774,-191.17730105,0.00015805,2]
[398392710,1765588231783,-150.0,0.00015805,2]
[398392711,1765588231793,-124.50841498,0.00015812,2]
[398392712,1765588231814,-175.49158502,0.00015812,2]
[398392713,1765588231824,-1200.0,0.00015812,2]
[398392714,1765588231833,-732.527841,0.00015813,2]
[398392715,1765588231844,-868.46461215,0.00015813,2]
[398392716,1765588231873,-6770.91754685,0.00015813,2]
[398392717,1765588231882,-5173.22,0.00015849,2]
[398392718,1765588231892,-248.2,0.00016076,2]
[398392719,1765588231901,-166.66,0.00016076,2]
[398392720,1765588231910,-510.0,0.00016262,2]
[398392721,1765588231919,-6635.46642336,0.00016263,2]
[398392722,1765588231928,-3217.62602979,0.00016263,2]
[398392723,1765588231939,-42040.03747021,0.00016263,2]
[398392724,1765588231948,-1447.642,0.00016362,2]
[398392725,1765588231957,-52119.61713635,0.00016363,2]
[398392726,1765588231967,-13916.19,0.00016363,2]
[398392727,1765588231976,-9999.99,0.00016363,2]
[398392728,1765588231986,-1804.75,0.00016363,2]
[398392730,1765588231995,-1711.43,0.00016363,2]
[398392732,1765588232003,-8344.42,0.00016363,2]
[398392734,1765588232012,-3673.75,0.00016363,2]
[398392736,1765588232021,-2424.42,0.00016363,2]
[398392738,1765588232030,-9999.99,0.00016363,2]
[398392739,1765588232039,-9999.99,0.00016363,2]
[398392740,1765588232049,-273.29911475,0.00016363,2]
[398392741,1765588232060,-451.72088525,0.00016363,2]
[398392742,1765588232069,-547.27911475,0.00016363,2]
[398392743,1765588232080,-1723.24050514,0.00016363,2]
[398392744,1765588232090,-268.99999996,0.00016363,2]
[398392745,1765588232101,-4575.55,0.00016363,2]
[398392746,1765588232112,-1903.706576,0.00016363,2]
[398392747,1765588232123,-981.19380415,0.00016363,2]
[398392748,1765588232131,-150.99,0.00016363,2]
[398392749,1765588232141,-150.99,0.00016363,2]
[398392750,1765588232149,-3180.29,0.00016363,2]
[398392751,1765588232158,-1000.0,0.00016364,3]
[398392752,1765588232168,-1529.03,0.00016365,2]
[398392753,1765588232177,-4757.34159469,0.00016365,2]
[398392761,1765588237848,-402.44840531,0.00016365,2]
[398392762,1765588237858,-338.81040308,0.00016365,2]
[398392763,1765588237869,-1893.48,0.00016365,2]
[398392764,1765588237880,-466.77818949,0.00016365,2]
[398392765,1765588237891,-1524.0225275,0.00016365,2]
[398392766,1765588237915,-311.74846854,0.00016365,2]
[398392767,1765588237927,-465.15041139,0.00016365,2]
[398392768,1765588237935,-300.0,0.00016365,2]
[398392769,1765588237944,-166.66,0.00016388,2]
[398392770,1765588237953,-1254.0,0.00016404,2]
[398392771,1765588237962,-6635.46642331,0.00016445,2]
[398392772,1765588237972,-336.88,0.00016465,2]
[398392773,1765588237982,-248.2,0.00016522,2]
[398392774,1765588237991,-3052.1024,0.0001656,2]
[398392775,1765588238001,-1000.0,0.0001656,2]
[398392776,1765588238011,-2089.84441052,0.0001656,2]
[398392777,1765588238026,-410.15558948,0.0001656,2]
[398392778,1765588238035,-1274.50198206,0.00016587,2]
[398392780,1765588238046,-356.71,0.00016587,2]
[398392782,1765588238057,-249.78801794,0.00016587,2]
[398392784,1765588238065,-326.0,0.00016587,2]
[398392786,1765588238075,-250.0,0.00016604,2]
[398392788,1765588238085,-183.15899677,0.00016612,2]
[398392790,1765588238094,-168.0,0.0001662,2]
[398392791,1765588238103,-649.36099985,0.00016627,2]
[398392793,1765588238114,-360.47720297,0.00016627,2]
[398392794,1765588238124,-5625.62822049,0.00016627,2]
[398392796,1765588238134,-702.7,0.0001665,2]
[398392797,1765588238143,-500.0,0.0001665,2]
[398392799,1765588238153,-574.12855637,0.0001665,2]
[398392800,1765588238162,-200.0,0.0001665,2]
[398392802,1765588238171,-200.0,0.0001665,2]
[398392803,1765588238180,-500.0,0.0001665,2]
[398392805,1765588238190,-151.0,0.0001665,2]
[398392806,1765588238199,-151.0,0.0001665,2]
[398392808,1765588238209,-151.0,0.0001665,2]
[398392810,1765588238219,-151.0,0.0001665,2]
[398392811,1765588238228,-151.0,0.0001665,2]
[398392813,1765588238238,-151.0,0.0001665,2]
[398392814,1765588238247,-151.0,0.0001665,2]
[398392816,1765588238258,-151.0,0.0001665,2]
[398392818,1765588238267,-151.0,0.0001665,2]
[398392819,1765588238276,-151.0,0.0001665,2]
[398392820,1765588238286,-151.0,0.0001665,2]
[398392822,1765588238295,-231.33551737,0.0001665,2]
[398392823,1765588238304,-151.0,0.0001665,2]
[398392825,1765588238313,-689.66878,0.0001665,2]
[398392827,1765588238323,-200.0,0.0001665,2]
[398392828,1765588238332,-151.08967993,0.0001665,2]
[398392830,1765588238341,-500.0,0.00016659,2]
[398392831,1765588238351,-509.54546032,0.00016659,2]
[398392833,1765588238360,-500.0,0.00016659,2]
[398392834,1765588238369,-282.80390472,0.00016659,2]
[398392835,1765588238378,-520.37,0.00016659,2]
[398392836,1765588238387,-600.0,0.0001666,2]
[398392837,1765588238396,-3305.01219794,0.00016732,2]
[398392838,1765588239827,-792.94577513,0.00016732,2]
[398392839,1765588239838,-3957.24204253,0.00016732,2]
[398392840,1765588239849,-265.59800007,0.00016732,2]
[398392841,1765588239942,-5402.42848168,0.00016732,2]
[398392842,1765588239999,-468.93551799,0.00016732,2]
[398392843,1765588240010,-19259.20748466,0.00016732,2]
[398392844,1765588240019,-1000.0,0.00016732,2]
[398392845,1765588240029,-195.17421571,0.00016754,2]
[398392846,1765588240038,-2231.43117936,0.00016809,2]